fUST/lending_fUST_20240725
["ID","MTS","AMOUNT","RATE_DAILY","PERIOD"]
[333080785,1721847045520,-500.0,0.00013972,2]
[333080786,1721847045530,-6238.18,0.00013972,2]
[333080787,1721847045540,-500.0,0.00013972,2]
[333080788,1721847045553,-500.0,0.00013972,2]
[333080789,1721847045562,-8395.39,0.00013972,2]
[333080790,1721847045571,-681.17,0.00013972,2]
[333080791,1721847045581,-1266.87,0.00013972,2]
[333080792,1721847045591,-500.0,0.00013972,2]
[333080793,1721847045601,-511.72,0.00013972,2]
[333080794,1721847045613,-990.83,0.00013972,2]
[333080795,1721847045625,-500.0,0.00013972,2]
[333080796,1721847045634,-714.42,0.00013972,2]
[333080797,1721847045644,-1636.46,0.00013972,2]
[333080798,1721847045656,-1905.34,0.00013972,2]
[333080799,1721847045665,-2424.2,0.00013972,2]
[333080800,1721847045675,-500.0,0.00013972,2]
[333080801,1721847045685,-500.0,0.00013972,2]
[333080802,1721847045694,-395.57400265,0.00013972,2]
[333080803,1721847045703,-500.0,0.00013972,2]
[333080804,1721847045714,-500.0,0.00013972,2]
[333080805,1721847045724,-4503.33,0.00013972,2]
[333080806,1721847045735,-500.0,0.00013972,2]
[333080807,1721847045745,-500.0,0.00013972,2]
[333080808,1721847045756,-500.0,0.00013972,2]
[333080809,1721847045766,-624.69,0.00013972,2]
[333080810,1721847045776,-508.47,0.00013972,2]
[333080811,1721847045785,-500.0,0.00013972,2]
[333080812,1721847045795,-1319.22,0.00013972,2]
[333080813,1721847045804,-1079.77,0.00013972,2]
[333080814,1721847045814,-10909.35,0.00013972,2]
[333080815,1721847045823,-500.0,0.00013972,2]
[333080816,1721847045833,-1454.74,0.00013972,2]
[333080817,1721847045842,-2443.49,0.00013972,2]
[333080819,1721847045852,-500.0,0.00013972,2]
[333080820,1721847045862,-500.0,0.00013972,2]
[333080821,1721847045871,-293.9329269,0.00013973,2]
[333080822,1721847045881,-153.0,0.00013973,2]
[333080823,1721847045890,-206.6937542,0.00013973,2]
[333080824,1721847045900,-1000.0,0.00014,14]
[333080825,1721847045910,-150.112233,0.00014,2]
[333080826,1721847046073,-150.112233,0.00014,2]
[333080827,1721847046083,-150.112233,0.00014,2]
[333080828,1721847046094,-153.0,0.00014,2]
[333080829,1721847046103,-1060.0,0.00014,2]
[333080830,1721847046113,-306.547776,0.00014,2]
[333080831,1721847046123,-150.112233,0.000141,2]
[333080832,1721847046133,-153.0,0.00014187,2]
[333080833,1721847046142,-160.0,0.00014229,3]
[333080834,1721847046153,-28267.8434101,0.00014236,2]
[333080835,1721847046164,-500.0,0.00014246,2]
[333080836,1721847046173,-227.16455224,0.00014246,2]
[333080837,1721847046183,-500.0,0.00014246,2]
[333080838,1721847046193,-334.8116071,0.00014246,2]
[333080839,1721847046202,-500.0,0.00014246,2]
[333080840,1721847046212,-500.0,0.00014246,2]
[333080841,1721847046222,-500.0,0.00014246,2]
[333080842,1721847046232,-500.0,0.00014246,2]
[333080843,1721847046242,-457.65884256,0.00014246,2]
[333080844,1721847046252,-500.0,0.00014246,2]
[333080845,1721847046263,-691.28,0.00014246,2]
[333080846,1721847046274,-1395.41,0.00014246,2]
[333080847,1721847046283,-500.0,0.00014246,2]
[333080848,1721847046293,-500.0,0.00014246,2]
[333080849,1721847046303,-1247.94,0.00014246,2]
[333080850,1721847046313,-500.0,0.00014246,2]
[333080851,1721847046323,-319.68635329,0.00014246,2]
[333080852,1721847046333,-501.66,0.00014246,2]
[333080853,1721847046343,-500.0,0.00014246,2]
[333080854,1721847046352,-500.0,0.00014246,2]
[333080855,1721847046362,-2456.17,0.00014246,2]
[333080856,1721847046372,-1501.42,0.00014246,2]
[333080857,1721847046382,-521.02,0.00014246,2]
[333080858,1721847046392,-500.0,0.00014246,2]
[333080859,1721847046403,-500.0,0.00014246,2]
[333080860,1721847046414,-500.0,0.00014246,2]
[333080861,1721847046425,-503.69,0.00014246,2]
[333080862,1721847046437,-500.0,0.00014246,2]
[333080863,1721847046447,-508.97254975,0.00014246,2]
[333080864,1721847046457,-3171.16,0.00014246,2]
[333080865,1721847046467,-500.0,0.00014246,2]
[333080866,1721847046477,-533.92,0.00014246,2]
[333080867,1721847046488,-680.09,0.00014246,2]
[333080868,1721847046500,-359.05493037,0.00014246,2]
[333080869,1721847046515,-500.0,0.00014246,2]
[333080870,1721847046524,-1722.89,0.00014246,2]
[333080871,1721847046539,-649.81,0.00014246,2]
[333080872,1721847046551,-1122.43,0.00014246,2]
[333080873,1721847046561,-1228.62,0.00014246,2]
[333080874,1721847046571,-500.0,0.00014246,2]
[333080875,1721847046582,-500.0,0.00014246,2]
[333080876,1721847046595,-1428.88,0.00014246,2]
[333080877,1721847046607,-500.0,0.00014246,2]
[333080878,1721847046620,-500.0,0.00014246,2]
[333080879,1721847046630,-500.0,0.00014246,2]
[333080880,1721847046641,-527.21,0.00014246,2]
[333080881,1721847046651,-725.75,0.00014246,2]
[333080882,1721847046661,-1903.78,0.00014246,2]
[333080883,1721847046672,-676.62,0.00014246,2]
[333080884,1721847046681,-500.0,0.00014246,2]
[333080885,1721847046692,-1159.26,0.00014246,2]
[333080886,1721847046703,-500.0,0.00014246,2]
[333080887,1721847046712,-500.0,0.00014246,2]
[333080888,1721847046722,-1728.61,0.00014246,2]
[333080889,1721847046733,-500.0,0.00014246,2]
[333080890,1721847046742,-500.0,0.00014246,2]
[333080891,1721847046753,-500.0,0.00014246,2]
[333080892,1721847046764,-500.0,0.00014246,2]
[333080893,1721847046775,-1586.5,0.00014246,2]
[333080894,1721847046784,-500.0,0.00014246,2]
[333080895,1721847046794,-500.0,0.00014246,2]
[333080896,1721847046804,-500.0,0.00014246,2]
[333080897,1721847046814,-670.02,0.00014246,2]
[333080898,1721847046824,-500.0,0.00014246,2]
[333080899,1721847046833,-544.59,0.00014246,2]
[333080900,1721847046843,-743.42,0.00014246,2]
[333080901,1721847046852,-813.48,0.00014246,2]
[333080902,1721847046862,-500.0,0.00014246,2]
[333080903,1721847046871,-1656.25,0.00014246,2]
[333080904,1721847046881,-500.0,0.00014246,2]
[333080905,1721847046890,-573.77,0.00014246,2]
[333080906,1721847046900,-500.0,0.00014246,2]
[333080907,1721847046910,-500.0,0.00014246,2]
[333080908,1721847046920,-500.0,0.00014246,2]
[333080909,1721847046930,-553.79,0.00014246,2]
[333080910,1721847046940,-500.0,0.00014246,2]
[333080911,1721847046950,-500.0,0.00014246,2]
[333080912,1721847046960,-1274.24,0.00014246,2]
[333080913,1721847046971,-1224.71,0.00014246,2]
[333080914,1721847046981,-1231.22,0.00014246,2]
[333080915,1721847046990,-1773.46,0.00014246,2]
[333080916,1721847047001,-500.0,0.00014246,2]
[333080917,1721847047014,-500.0,0.00014246,2]
[333080918,1721847047026,-505.16,0.00014246,2]
[333080919,1721847047036,-500.0,0.00014246,2]
[333080920,1721847047047,-1448.15,0.00014246,2]
[333080921,1721847047059,-2265.75,0.00014246,2]
[333080922,1721847047069,-644.06,0.00014246,2]
[333080923,1721847047079,-500.0,0.00014246,2]
[333080924,1721847047088,-504.22224232,0.00014246,2]
[333080925,1721847047097,-500.0,0.00014246,2]
[333080926,1721847047107,-500.0,0.00014246,2]
[333080927,1721847047117,-571.5,0.00014246,2]
[333080928,1721847047127,-500.0,0.00014246,2]
[333080929,1721847047138,-614.28,0.00014246,2]
[333080930,1721847047148,-1148.89,0.00014246,2]
[333080931,1721847047158,-500.0,0.00014246,2]
[333080932,1721847047168,-1249.2,0.00014246,2]
[333080933,1721847047178,-500.0,0.00014246,2]
[333080934,1721847047188,-500.0,0.00014246,2]
[333080935,1721847047199,-1132.86,0.00014246,2]
[333080936,1721847047210,-500.0,0.00014246,2]
[333080937,1721847047220,-500.0,0.00014246,2]
[333080938,1721847047230,-500.0,0.00014246,2]
[333080939,1721847047241,-500.0,0.00014246,2]
[333080940,1721847047253,-500.0,0.00014246,2]
[333080941,1721847047264,-4595.77,0.00014246,2]
[333080942,1721847047273,-500.0,0.00014246,2]
[333080943,1721847047283,-500.0,0.00014246,2]
[333080944,1721847047292,-528.36846732,0.00014246,2]
[333080945,1721847047302,-1746.49,0.00014246,2]
[333080946,1721847047313,-457.52091022,0.00014246,2]
[333080947,1721847047323,-500.0,0.00014246,2]
[333080948,1721847047336,-733.27,0.00014246,2]
[333080949,1721847047348,-769.91,0.00014246,2]
[333080950,1721847047360,-735.72,0.00014246,2]
[333080951,1721847047370,-500.0,0.00014246,2]
[333080952,1721847047379,-500.0,0.00014246,2]
[333080953,1721847047389,-1089.91,0.00014246,2]
[333080954,1721847047398,-500.0,0.00014246,2]
[333080955,1721847047408,-500.0,0.00014246,2]
[333080956,1721847047418,-500.0,0.00014246,2]
[333080957,1721847047427,-1891.1,0.00014246,2]
[333080958,1721847047437,-3058.36,0.00014246,2]
[333080959,1721847047446,-569.59,0.00014246,2]
[333080960,1721847047456,-299.83443748,0.00014246,2]
[333080961,1721847047466,-521.15,0.00014246,2]
[333080962,1721847047475,-1917.81,0.00014246,2]
[333080963,1721847047484,-792.52,0.00014246,2]
[333080964,1721847047494,-1687.93,0.00014246,2]
[333080965,1721847047504,-500.0,0.00014246,2]
[333080966,1721847047514,-500.0,0.00014246,2]
[333080967,1721847047524,-3940.69,0.00014246,2]
[333080968,1721847047534,-500.0,0.00014246,2]
[333080969,1721847047544,-500.0,0.00014246,2]
[333080970,1721847047554,-500.0,0.00014246,2]
[333080971,1721847047564,-2773.96,0.00014246,2]
[333080972,1721847047575,-220.46621491,0.00014246,2]
[333080973,1721847047744,-279.53378509,0.00014246,2]
[333080974,1721847047756,-500.0,0.00014246,2]
[333080975,1721847047765,-1507.61217447,0.00014246,2]
[333080976,1721847047778,-11888.46782553,0.00014246,2]
[333080977,1721847047788,-500.0,0.00014246,2]
[333080978,1721847047798,-6868.17,0.00014246,2]
[333080979,1721847047807,-727.45,0.00014246,2]
[333080980,1721847047816,-809.09,0.00014246,2]
[333080981,1721847047826,-4239.86,0.00014246,2]
[333080983,1721847047835,-1648.14,0.00014246,2]
[333080985,1721847047845,-500.0,0.00014246,2]
[333080986,1721847047855,-2855.69,0.00014246,2]
[333080987,1721847047865,-500.0,0.00014246,2]
[333080988,1721847047874,-500.0,0.00014246,2]
[333080989,1721847047885,-607.76,0.00014246,2]
[333080990,1721847047895,-765.65,0.00014246,2]
[333080991,1721847047904,-3192.17,0.00014246,2]
[333080992,1721847047914,-500.0,0.00014246,2]
[333080993,1721847047924,-1990.49,0.00014246,2]
[333080994,1721847047934,-1940.15,0.00014246,2]
[333080995,1721847047944,-500.0,0.00014246,2]
[333080996,1721847047954,-3132.61,0.00014246,2]
[333080997,1721847047963,-518.18510307,0.00014246,2]
[333080998,1721847047973,-685.21,0.00014246,2]
[333080999,1721847047983,-2095.62,0.00014246,2]
[333081000,1721847047993,-500.0,0.00014246,2]
[333081001,1721847048003,-857.92,0.00014246,2]
[333081002,1721847048016,-4538.23,0.00014246,2]
[333081003,1721847048026,-656.25272748,0.00014246,2]
[333081005,1721847048054,-592.09727252,0.00014246,2]
[333081006,1721847048063,-500.0,0.00014246,2]
[333081008,1721847048074,-500.0,0.00014246,2]
[333081010,1721847048083,-10833.61,0.00014246,2]
[333081012,1721847048093,-500.0,0.00014246,2]
[333081014,1721847048103,-500.0,0.00014246,2]
[333081015,1721847048113,-6238.18,0.00014246,2]
[333081016,1721847048122,-500.0,0.00014246,2]
[333081017,1721847048131,-500.0,0.00014246,2]
[333081018,1721847048140,-387.42964801,0.00014246,2]
[333081020,1721847048666,-394.43597965,0.00013698,2]
[333081021,1721847048688,-616.49402035,0.00013698,2]
[333081022,1721847048697,-523.90974316,0.00013698,2]
[333081024,1721847048708,-1010.93,0.00013972,2]
[333081025,1721847048719,-1288.21015921,0.00014246,2]
[333081028,1721847048735,-6719.75019278,0.00014246,2]
[333081030,1721847048744,-681.17,0.00014246,2]
[333081031,1721847048754,-1266.87,0.00014246,2]
[333081032,1721847048765,-500.0,0.00014246,2]
[333081033,1721847048775,-511.72,0.00014246,2]
[333081035,1721847048785,-990.83,0.00014246,2]
[333081036,1721847048794,-500.0,0.00014246,2]
[333081037,1721847048803,-685.20980721,0.00014246,2]
[333081039,1721847048815,-29.21019279,0.00014246,2]
[333081040,1721847048824,-1636.46,0.00014246,2]
[333081042,1721847048833,-1905.34,0.00014246,2]
[333081043,1721847048843,-2424.2,0.00014246,2]
[333081044,1721847048853,-500.0,0.00014246,2]
[333081045,1721847048862,-4.78980721,0.00014246,2]
[333081046,1721847048874,-182.2089466,0.00014246,2]
[333081047,1721847048885,-216.21927671,0.00014246,2]
[333081048,1721847048895,-500.0,0.00014246,2]
[333081049,1721847048905,-3201.57177669,0.00014246,2]
[333081050,1721847048943,-1301.75822331,0.00014246,2]
[333081051,1721847048954,-500.0,0.00014246,2]
[333081052,1721847048964,-500.0,0.00014246,2]
[333081053,1721847048974,-507.37909551,0.00014246,2]
[333081054,1721847048984,-624.69,0.00014246,2]
[333081055,1721847048994,-508.47,0.00014246,2]
[333081056,1721847049003,-500.0,0.00014246,2]
[333081057,1721847049015,-1319.22,0.00014246,2]
[333081058,1721847049025,-1079.77,0.00014246,2]
[333081059,1721847049034,-10909.35,0.00014246,2]
[333081060,1721847049044,-575.12878761,0.00014246,2]
[333081061,1721847049053,-1454.74,0.00014246,2]
[333081062,1721847049064,-2443.49,0.00014246,2]
[333081063,1721847049073,-500.0,0.00014246,2]
[333081064,1721847049085,-500.0,0.00014246,2]
[333081065,1721847049094,-1010.93,0.00014246,2]
[333081066,1721847049104,-750.0,0.00014247,2]
[333081067,1721847049115,-297.12575329,0.00014306,2]
[333081068,1721847049125,-631.80254588,0.00014328,2]
[333081069,1721847049134,-160.0,0.00014389,4]
[333081070,1721847049144,-305.66822851,0.0001452,2]
[333081071,1721847049154,-500.0,0.0001452,2]
[333081072,1721847049164,-500.0,0.0001452,2]
[333081073,1721847049174,-233.52198101,0.0001452,2]
[333081074,1721847049183,-500.0,0.0001452,2]
[333081075,1721847049193,-500.0,0.0001452,2]
[333081076,1721847049202,-500.0,0.0001452,2]
[333081077,1721847049211,-691.28,0.0001452,2]
[333081078,1721847049221,-1395.41,0.0001452,2]
[333081079,1721847049230,-500.0,0.0001452,2]
[333081080,1721847049239,-500.0,0.0001452,2]
[333081081,1721847049248,-1247.94,0.0001452,2]
[333081082,1721847049259,-500.0,0.0001452,2]
[333081083,1721847049269,-501.66,0.0001452,2]
[333081084,1721847049279,-500.0,0.0001452,2]
[333081085,1721847049288,-574.65415458,0.0001452,2]
[333081086,1721847049296,-2456.17,0.0001452,2]
[333081087,1721847049306,-1501.42,0.0001452,2]
[333081088,1721847049315,-521.02,0.0001452,2]
[333081089,1721847049325,-500.0,0.0001452,2]
[333081090,1721847049334,-500.0,0.0001452,2]
[333081091,1721847049344,-500.0,0.0001452,2]
[333081092,1721847049354,-503.69,0.0001452,2]
[333081093,1721847049365,-500.0,0.0001452,2]
[333081094,1721847049375,-3171.16,0.0001452,2]
[333081095,1721847049386,-500.0,0.0001452,2]
[333081096,1721847049397,-533.92,0.0001452,2]
[333081097,1721847049407,-680.09,0.0001452,2]
[333081098,1721847049417,-500.0,0.0001452,2]
[333081099,1721847049428,-1722.89,0.0001452,2]
[333081100,1721847049438,-649.81,0.0001452,2]
[333081101,1721847049449,-1122.43,0.0001452,2]
[333081102,1721847049459,-1228.62,0.0001452,2]
[333081103,1721847049470,-500.0,0.0001452,2]
[333081104,1721847049481,-215.18354761,0.0001452,2]
[333081105,1721847049491,-1428.88,0.0001452,2]
[333081106,1721847049503,-500.0,0.0001452,2]
[333081107,1721847049516,-500.0,0.0001452,2]
[333081108,1721847049526,-500.0,0.0001452,2]
[333081109,1721847049537,-527.21,0.0001452,2]
[333081110,1721847049550,-725.75,0.0001452,2]
[333081111,1721847049561,-1903.78,0.0001452,2]
[333081112,1721847049571,-676.62,0.0001452,2]
[333081113,1721847049583,-500.0,0.0001452,2]
[333081114,1721847049593,-1159.26,0.0001452,2]
[333081115,1721847049603,-500.0,0.0001452,2]
[333081116,1721847049613,-500.0,0.0001452,2]
[333081117,1721847049625,-1728.61,0.0001452,2]
[333081118,1721847049635,-500.0,0.0001452,2]
[333081119,1721847049645,-500.0,0.0001452,2]
[333081120,1721847049655,-500.0,0.0001452,2]
[333081121,1721847049665,-500.0,0.0001452,2]
[333081122,1721847049675,-1586.5,0.0001452,2]
[333081123,1721847049685,-500.0,0.0001452,2]
[333081124,1721847049696,-500.0,0.0001452,2]
[333081125,1721847049706,-448.28821608,0.0001452,2]
[333081126,1721847049716,-670.02,0.0001452,2]
[333081127,1721847049726,-500.0,0.0001452,2]
[333081128,1721847049736,-544.59,0.0001452,2]
[333081129,1721847049745,-743.42,0.0001452,2]
[333081130,1721847049755,-813.48,0.0001452,2]
[333081131,1721847049768,-500.0,0.0001452,2]
[333081132,1721847049778,-1656.25,0.0001452,2]
[333081133,1721847049788,-573.77,0.0001452,2]
[333081134,1721847049798,-500.0,0.0001452,2]
[333081135,1721847049808,-500.0,0.0001452,2]
[333081136,1721847049818,-279.7555798,0.0001452,2]
[333081137,1721847049828,-553.79,0.0001452,2]
[333081138,1721847049838,-500.0,0.0001452,2]
[333081139,1721847049849,-500.0,0.0001452,2]
[333081140,1721847049859,-1274.24,0.0001452,2]
[333081141,1721847049869,-1224.71,0.0001452,2]
[333081142,1721847049879,-1231.22,0.0001452,2]
[333081143,1721847049889,-1773.46,0.0001452,2]
[333081144,1721847049899,-500.0,0.0001452,2]
[333081145,1721847049909,-500.0,0.0001452,2]
[333081146,1721847049919,-505.16,0.0001452,2]
[333081147,1721847049930,-500.0,0.0001452,2]
[333081148,1721847049940,-1448.15,0.0001452,2]
[333081149,1721847049950,-2265.75,0.0001452,2]
[333081150,1721847049960,-644.06,0.0001452,2]
[333081151,1721847049969,-500.0,0.0001452,2]
[333081152,1721847049978,-500.0,0.0001452,2]
[333081153,1721847049990,-500.0,0.0001452,2]
[333081154,1721847050000,-571.5,0.0001452,2]
[333081155,1721847050014,-500.0,0.0001452,2]
[333081156,1721847050025,-614.28,0.0001452,2]
[333081157,1721847050036,-1148.89,0.0001452,2]
[333081158,1721847050046,-500.0,0.0001452,2]
[333081159,1721847050056,-1249.2,0.0001452,2]
[333081160,1721847050066,-500.0,0.0001452,2]
[333081161,1721847050076,-500.0,0.0001452,2]
[333081162,1721847050086,-1132.86,0.0001452,2]
[333081163,1721847050097,-500.0,0.0001452,2]
[333081164,1721847050107,-500.0,0.0001452,2]
[333081165,1721847050116,-169.19407877,0.0001452,2]
[333081166,1721847050134,-330.80592123,0.0001452,2]
[333081167,1721847050144,-500.0,0.0001452,2]
[333081168,1721847050154,-500.0,0.0001452,2]
[333081169,1721847050163,-469.93439399,0.0001452,2]
[333081170,1721847050209,1125.64014788,0.00012,2]
[333081171,1721847050629,-500.0,0.00013698,2]
[333081172,1721847050641,-713.26467635,0.00013698,2]
[333081173,1721847050653,-500.0,0.00013698,2]
[333081174,1721847050663,-713.26467635,0.00013698,2]
[333081175,1721847050672,-500.0,0.00013698,2]
[333081176,1721847050682,-713.26467635,0.00013698,2]
[333081177,1721847050691,-500.0,0.00013698,2]
[333081178,1721847050700,-250.0,0.00013698,2]
[333081179,1721847050710,-168.85551284,0.00013698,2]
[333081180,1721847050720,-1303.57693611,0.00013863,2]
[333081181,1721847050730,-4259.83353219,0.00013972,2]
[333081182,1721847050740,-4125.83560601,0.0001452,2]
[333081183,1721847050750,-500.0,0.0001452,2]
[333081184,1721847050760,-1746.49,0.0001452,2]
[333081185,1721847050771,-500.0,0.0001452,2]
[333081186,1721847050780,-769.91,0.0001452,2]
[333081187,1721847050790,-735.72,0.0001452,2]
[333081188,1721847050799,-500.0,0.0001452,2]
[333081189,1721847050809,-1089.91,0.0001452,2]
[333081190,1721847050819,-500.0,0.0001452,2]
[333081191,1721847050829,-500.0,0.0001452,2]
[333081192,1721847050840,-500.0,0.0001452,2]
[333081193,1721847050851,-1891.1,0.0001452,2]
[333081194,1721847050861,-3058.36,0.0001452,2]
[333081195,1721847050872,-569.59,0.0001452,2]
[333081196,1721847050882,-521.15,0.0001452,2]
[333081197,1721847050893,-1917.81,0.0001452,2]
[333081198,1721847050903,-792.52,0.0001452,2]
[333081199,1721847050913,-1687.93,0.0001452,2]
[333081200,1721847050924,-500.0,0.0001452,2]
[333081201,1721847050936,-243.79200856,0.0001452,2]
[333081210,1721847734053,2000.0,0.00025,120]
[333081212,1721847934119,-200.0,0.0001,2]
[333081213,1721847934141,-182.12641285,0.0001137,2]
[333081214,1721847934164,-137.27328459,0.00012741,2]
[333081215,1721848026147,-200.0,0.0001,2]
[333081216,1721848026171,-400.0,0.0001137,2]
[333081217,1721848026196,-21.73424841,0.00012741,2]
[333081218,1721848026220,-159.007533,0.00012801,2]
[333081219,1721848026244,-159.007533,0.00012862,2]
[333081220,1721848026268,-159.007533,0.00012922,2]
[333081221,1721848026291,-159.007533,0.00012983,2]
[333081222,1721848026312,-159.007533,0.00013043,2]
[333081223,1721848026334,-159.007533,0.00013103,2]
[333081224,1721848026356,-202.82732289,0.00013147,2]
[333081225,1721848026379,-159.007533,0.00013164,2]
[333081226,1721848026401,-159.007533,0.00013224,2]
[333081227,1721848026424,-159.007533,0.00013284,2]
[333081228,1721848026447,-159.007533,0.00013345,2]
[333081229,1721848026470,-159.007533,0.00013405,2]
[333081230,1721848026492,-200.0,0.00013425,2]
[333081231,1721848026515,-1698.92121714,0.00013598,2]
[333081232,1721848035110,-301.07878286,0.00013598,2]
[333081233,1721848035134,-300.0,0.00013599,2]
[333081234,1721848035157,-3140.12847174,0.000136,2]
[333081235,1721848047123,-3350.8494341,0.000136,2]
[333081236,1721848053143,-4505.45240699,0.000136,2]
[333081237,1721848148747,200.0,0.0001,2]
[333081238,1721848148802,400.0,0.0001137,2]
[333081265,1721848234062,-166.7770938,0.00012766,2]
[333081267,1721848234072,-379.09854192,0.00013598,2]
[333081314,1721848239636,-403.52635708,0.00013598,2]
[333081315,1721848239646,-300.0,0.00013599,2]
[333081316,1721848239655,-6352.91309265,0.000136,2]
[333081317,1721848239668,-367.8976457,0.000136,2]
[333081318,1721848239768,-11031.37273993,0.000136,2]
[333081319,1721848239778,-2860.16306786,0.000136,2]
[333081320,1721848239787,-33170.2071177,0.00013688,2]
[333081321,1721848239797,-500.0,0.00013698,2]
[333081322,1721848239807,-500.0,0.00013698,2]
[333081323,1721848239817,-500.0,0.00013698,2]
[333081324,1721848239827,-500.0,0.00013698,2]
[333081325,1721848239837,-500.0,0.00013698,2]
[333081326,1721848239847,-500.0,0.00013698,2]
[333081327,1721848239857,-500.0,0.00013698,2]
[333081328,1721848239867,-502.71235514,0.00013698,2]
[333081329,1721848239879,-500.0,0.00013698,2]
[333081330,1721848239889,-508.72670725,0.00013698,2]
[333081331,1721848239902,-500.0,0.00013698,2]
[333081332,1721848239912,-500.0,0.00013698,2]
[333081333,1721848239925,-500.0,0.00013698,2]
[333081334,1721848239938,-500.0,0.00013698,2]
[333081335,1721848239948,-500.0,0.00013698,2]
[333081336,1721848239958,-500.0,0.00013698,2]
[333081337,1721848239967,-500.0,0.00013698,2]
[333081338,1721848239976,-500.0,0.00013698,2]
[333081339,1721848239986,-500.0,0.00013698,2]
[333081340,1721848239996,-499.99813913,0.00013698,2]
[333081341,1721848240006,-1337.0,0.00013698,2]
[333081342,1721848240015,-500.0,0.00013698,2]
[333081343,1721848240025,-500.0,0.00013698,2]
[333081344,1721848240035,-500.0,0.00013698,2]
[333081345,1721848240045,-500.0,0.00013698,2]
[333081346,1721848240055,-500.0,0.00013698,2]
[333081347,1721848240064,-547.68,0.00013698,2]
[333081348,1721848240074,-1376.31,0.00013698,2]
[333081349,1721848240083,-330.38713503,0.00013698,2]
[333081350,1721848240094,-500.0,0.00013698,2]
[333081351,1721848240104,-500.0,0.00013698,2]
[333081352,1721848240114,-1101.02,0.00013698,2]
[333081353,1721848240126,-500.0,0.00013698,2]
[333081354,1721848240135,-588.69,0.00013698,2]
[333081355,1721848240144,-500.0,0.00013698,2]
[333081356,1721848240154,-500.0,0.00013698,2]
[333081357,1721848240164,-500.0,0.00013698,2]
[333081358,1721848240177,-500.0,0.00013698,2]
[333081359,1721848240186,-500.0,0.00013698,2]
[333081360,1721848240195,-623.42,0.00013698,2]
[333081361,1721848240205,-2251.49,0.00013698,2]
[333081362,1721848240214,-2906.9,0.00013698,2]
[333081363,1721848240224,-345.54007751,0.00013698,2]
[333081364,1721848240233,-500.0,0.00013698,2]
[333081365,1721848240243,-500.0,0.00013698,2]
[333081366,1721848240253,-500.0,0.00013698,2]
[333081367,1721848240262,-503.00451241,0.00013698,2]
[333081368,1721848240271,-500.0,0.00013698,2]
[333081369,1721848240281,-500.0,0.00013698,2]
[333081370,1721848240291,-595.66,0.00013698,2]
[333081371,1721848240300,-500.0,0.00013698,2]
[333081373,1721848240310,-500.0,0.00013698,2]
[333081374,1721848240320,-500.0,0.00013698,2]
[333081375,1721848240330,-425.98261447,0.00013698,2]
[333081376,1721848240340,-705.07,0.00013698,2]
[333081377,1721848240349,-500.0,0.00013698,2]
[333081378,1721848240359,-500.0,0.00013698,2]
[333081379,1721848240369,-500.0,0.00013698,2]
[333081381,1721848240378,-1177.43,0.00013698,2]
[333081383,1721848240388,-500.0,0.00013698,2]
[333081384,1721848240398,-1812.31,0.00013698,2]
[333081386,1721848240407,-500.0,0.00013698,2]